fUSD/lending_fUSD_20250814
["ID","MTS","AMOUNT","RATE_DAILY","PERIOD"]
[379207341,1755186643060,-400.0,0.00027397,2]
[379207342,1755186643071,-400.0,0.00027397,2]
[379207343,1755186643081,-400.0,0.00027397,2]
[379207344,1755186643092,-400.0,0.00027397,2]
[379207345,1755186643102,-500.0,0.00027397,2]
[379207346,1755186643111,-500.0,0.00027397,2]
[379207347,1755186643122,-400.0,0.00027397,2]
[379207348,1755186643132,-500.0,0.00027397,2]
[379207349,1755186643143,-500.0,0.00027397,2]
[379207350,1755186643154,-500.0,0.00027397,2]
[379207351,1755186643165,-2000.0,0.00027397,30]
[379207352,1755186643176,-500.0,0.00027397,2]
[379207353,1755186643187,-400.0,0.00027397,2]
[379207354,1755186643198,-500.0,0.00027397,2]
[379207355,1755186643209,-500.0,0.00027397,2]
[379207356,1755186643220,-500.0,0.00027397,2]
[379207357,1755186643230,-400.0,0.00027397,2]
[379207358,1755186643241,-400.0,0.00027397,2]
[379207359,1755186643253,-400.0,0.00027397,2]
[379207360,1755186643264,-400.0,0.00027397,2]
[379207361,1755186643275,-851.1,0.00027397,2]
[379207362,1755186643290,-219.24330215,0.00027397,2]
[379207363,1755186643301,-400.0,0.00027397,2]
[379207364,1755186643311,-400.0,0.00027397,2]
[379207365,1755186643322,-400.0,0.00027397,2]
[379207366,1755186643332,-400.0,0.00027397,2]
[379207367,1755186643344,-400.0,0.00027397,2]
[379207368,1755186643355,-400.0,0.00027397,2]
[379207369,1755186643365,-400.0,0.00027397,2]
[379207370,1755186643375,-696.55536687,0.00027397,2]
[379207390,1755186644525,-823.3067419,0.00027397,2]
[379207391,1755186644541,-205.52789123,0.00027397,2]
[379207392,1755186644552,-400.0,0.00027397,2]
[379207393,1755186644563,-427.97,0.00027397,2]
[379207394,1755186644574,-400.0,0.00027397,2]
[379207395,1755186644585,-400.0,0.00027397,2]
[379207396,1755186644595,-400.0,0.00027397,2]
[379207397,1755186644605,-400.0,0.00027397,2]
[379207398,1755186644616,-400.0,0.00027397,2]
[379207399,1755186644626,-400.0,0.00027397,2]
[379207400,1755186644637,-400.0,0.00027397,2]
[379207401,1755186644649,-398.0,0.00027397,2]
[379207402,1755186644659,-572.54,0.00027397,2]
[379207403,1755186644669,-400.0,0.00027397,2]
[379207404,1755186644681,-400.0,0.00027397,2]
[379207405,1755186644692,-400.0,0.00027397,2]
[379207406,1755186645036,-1338.78,0.00027397,2]
[379207407,1755186645079,-400.0,0.00027397,2]
[379207408,1755186645093,-400.0,0.00027397,2]
[379207409,1755186645105,-771.22,0.00027397,2]
[379207410,1755186645117,-506.93,0.00027397,2]
[379207411,1755186645127,-400.0,0.00027397,2]
[379207412,1755186645138,-400.0,0.00027397,2]
[379207413,1755186645150,-400.0,0.00027397,2]
[379207414,1755186645161,-400.0,0.00027397,2]
[379207415,1755186645171,-400.0,0.00027397,2]
[379207416,1755186645182,-400.0,0.00027397,2]
[379207417,1755186645193,-400.0,0.00027397,2]
[379207418,1755186645203,-400.0,0.00027397,2]
[379207419,1755186645214,-400.0,0.00027397,2]
[379207420,1755186645225,-1017.38,0.00027397,2]
[379207421,1755186645237,-400.0,0.00027397,2]
[379207422,1755186645247,-400.0,0.00027397,2]
[379207423,1755186645257,-400.0,0.00027397,2]
[379207424,1755186645268,-400.0,0.00027397,2]
[379207425,1755186645283,-467.34,0.00027397,2]
[379207426,1755186645294,-361.33251726,0.00027397,2]
[379207427,1755186645312,-38.66748274,0.00027397,2]
[379207428,1755186645323,-1309.7,0.00027397,2]
[379207429,1755186645333,-400.0,0.00027397,2]
[379207430,1755186645343,-400.0,0.00027397,2]
[379207431,1755186645354,-380.99814733,0.00027397,2]
[379207432,1755186645366,-400.0,0.00027397,2]
[379207433,1755186645377,-400.0,0.00027397,2]
[379207434,1755186645390,-1668.3,0.00027397,2]
[379207435,1755186645400,-905.78,0.00027397,2]
[379207436,1755186645411,-466.55,0.00027397,2]
[379207437,1755186645423,-838.61,0.00027397,2]
[379207438,1755186645433,-400.0,0.00027397,2]
[379207439,1755186645444,-400.0,0.00027397,2]
[379207440,1755186645455,-400.0,0.00027397,2]
[379207441,1755186645470,-400.0,0.00027397,2]
[379207442,1755186645481,-1153.37,0.00027397,2]
[379207443,1755186645492,-1067.02,0.00027397,2]
[379207444,1755186645503,-1099.71,0.00027397,2]
[379207445,1755186645514,-597.21,0.00027397,2]
[379207446,1755186645524,-1064.57,0.00027397,2]
[379207447,1755186645538,-1426.06,0.00027397,2]
[379207448,1755186645549,-1401.5,0.00027397,2]
[379207449,1755186645559,-400.0,0.00027397,2]
[379207450,1755186645569,-400.0,0.00027397,2]
[379207451,1755186645579,-624.29,0.00027397,2]
[379207452,1755186645590,-1948.67,0.00027397,2]
[379207453,1755186645600,-400.0,0.00027397,2]
[379207454,1755186645611,-1237.51,0.00027397,2]
[379207455,1755186645622,-400.0,0.00027397,2]
[379207456,1755186645632,-477.48,0.00027397,2]
[379207457,1755186645643,-400.0,0.00027397,2]
[379207458,1755186645653,-400.0,0.00027397,2]
[379207459,1755186645663,-400.0,0.00027397,2]
[379207460,1755186645673,-1031.32,0.00027397,2]
[379207461,1755186645683,-400.0,0.00027397,2]
[379207462,1755186645694,-932.05,0.00027397,2]
[379207463,1755186645704,-2471.17,0.00027397,2]
[379207464,1755186645715,-400.0,0.00027397,2]
[379207465,1755186645726,-400.0,0.00027397,2]
[379207466,1755186645738,-400.0,0.00027397,2]
[379207467,1755186645748,-400.0,0.00027397,2]
[379207468,1755186645759,-400.0,0.00027397,2]
[379207469,1755186645771,-400.0,0.00027397,2]
[379207470,1755186645785,-1053.08,0.00027397,2]
[379207471,1755186645795,-400.0,0.00027397,2]
[379207472,1755186645806,-825.77,0.00027397,2]
[379207473,1755186645816,-400.0,0.00027397,2]
[379207474,1755186645827,-400.0,0.00027397,2]
[379207475,1755186645837,-407.01,0.00027397,2]
[379207476,1755186645848,-400.0,0.00027397,2]
[379207477,1755186645858,-400.0,0.00027397,2]
[379207478,1755186645869,-456.48,0.00027397,2]
[379207479,1755186645879,-400.0,0.00027397,2]
[379207480,1755186645890,-300.0,0.00027397,2]
[379207481,1755186645900,-400.0,0.00027397,2]
[379207482,1755186645911,-704.33,0.00027397,2]
[379207483,1755186645921,-500.0,0.00027397,2]
[379207484,1755186645932,-500.0,0.00027397,2]
[379207485,1755186645942,-500.0,0.00027397,2]
[379207486,1755186645952,-500.0,0.00027397,2]
[379207487,1755186645963,-500.0,0.00027397,2]
[379207488,1755186645974,-500.0,0.00027397,2]
[379207489,1755186645985,-2147.12,0.00027397,2]
[379207490,1755186645996,-500.0,0.00027397,2]
[379207491,1755186646006,-500.0,0.00027397,2]
[379207492,1755186646017,-400.0,0.00027397,2]
[379207493,1755186646030,-500.0,0.00027397,2]
[379207494,1755186646041,-500.0,0.00027397,2]
[379207495,1755186646052,-500.0,0.00027397,2]
[379207496,1755186646062,-500.0,0.00027397,2]
[379207497,1755186646072,-500.0,0.00027397,2]
[379207498,1755186646083,-500.0,0.00027397,2]
[379207499,1755186646093,-400.0,0.00027397,2]
[379207500,1755186646104,-500.0,0.00027397,2]
[379207501,1755186646114,-309.33817307,0.00027397,2]
[379207502,1755186646124,-400.0,0.00027397,2]
[379207503,1755186646135,-583.37,0.00027397,2]
[379207504,1755186646148,-1000.0,0.00027397,2]
[379207505,1755186646159,-400.0,0.00027397,2]
[379207506,1755186646170,-400.0,0.00027397,2]
[379207507,1755186646181,-400.0,0.00027397,2]
[379207508,1755186646191,-400.0,0.00027397,2]
[379207509,1755186646201,-619.6,0.00027397,2]
[379207510,1755186646211,-400.0,0.00027397,2]
[379207511,1755186646221,-400.0,0.00027397,2]
[379207512,1755186646232,-400.0,0.00027397,2]
[379207513,1755186646242,-850.11,0.00027397,2]
[379207514,1755186646254,-400.0,0.00027397,2]
[379207515,1755186646265,-537.18,0.00027397,2]
[379207516,1755186646278,-2507.18,0.00027397,2]
[379207517,1755186646291,-1192.38819687,0.00027397,2]
[379207518,1755186646317,-1342.87180313,0.00027397,2]
[379207519,1755186646327,-400.0,0.00027397,2]
[379207520,1755186646338,-400.0,0.00027397,2]
[379207521,1755186646348,-826.61393929,0.00027397,2]
[379207522,1755186646361,-298.77606071,0.00027397,2]
[379207523,1755186646372,-284.52297201,0.00027397,2]
[379207524,1755186646383,-1165.74,0.00027397,2]
[379207525,1755186646393,-2251.89,0.00027397,2]
[379207526,1755186646403,-842.62,0.00027397,2]
[379207527,1755186646413,-1575.75,0.00027397,2]
[379207528,1755186646424,-400.0,0.00027397,2]
[379207529,1755186646434,-1324.1,0.00027397,2]
[379207530,1755186646445,-400.0,0.00027397,2]
[379207531,1755186646455,-500.0,0.00027397,2]
[379207532,1755186646468,-500.0,0.00027397,2]
[379207533,1755186646480,-500.0,0.00027397,2]
[379207534,1755186646491,-400.0,0.00027397,2]
[379207535,1755186646501,-500.0,0.00027397,2]
[379207536,1755186646512,-1313.16,0.00027397,2]
[379207537,1755186646522,-400.0,0.00027397,2]
[379207538,1755186646537,-481.32,0.00027397,2]
[379207539,1755186646550,-499.89838016,0.00027397,2]
[379207540,1755186646561,-1372.3,0.00027397,2]
[379207541,1755186646572,-400.0,0.00027397,2]
[379207542,1755186646583,-400.0,0.00027397,2]
[379207543,1755186646594,-461.9,0.00027397,2]
[379207544,1755186646605,-1382.05,0.00027397,2]
[379207545,1755186646616,-418.15,0.00027397,2]
[379207546,1755186646628,-2013.14,0.00027397,2]
[379207547,1755186646640,-400.0,0.00027397,2]
[379207548,1755186646651,-1710.2,0.00027397,2]
[379207549,1755186646662,-400.0,0.00027397,2]
[379207550,1755186646673,-400.0,0.00027397,2]
[379207551,1755186646683,-400.0,0.00027397,2]
[379207552,1755186646694,-400.0,0.00027397,2]
[379207553,1755186646706,-400.0,0.00027397,2]
[379207554,1755186646717,-1043.68,0.00027397,2]
[379207555,1755186646728,-657.33,0.00027397,2]
[379207556,1755186646738,-1392.3,0.00027397,2]
[379207557,1755186646748,-400.0,0.00027397,2]
[379207558,1755186646759,-1516.95,0.00027397,2]
[379207559,1755186646770,-400.0,0.00027397,2]
[379207560,1755186646783,-400.0,0.00027397,2]
[379207561,1755186646794,-567.05,0.00027397,2]
[379207562,1755186646805,-400.0,0.00027397,2]
[379207563,1755186646815,-728.82,0.00027397,2]
[379207564,1755186646826,-427.8,0.00027397,2]
[379207565,1755186646836,-400.0,0.00027397,2]
[379207566,1755186646847,-400.0,0.00027397,2]
[379207567,1755186646857,-400.0,0.00027397,2]
[379207568,1755186646867,-2357.15,0.00027397,2]
[379207569,1755186646877,-2173.43,0.00027397,2]
[379207570,1755186646888,-1556.83,0.00027397,2]
[379207571,1755186646899,-463.01,0.00027397,2]
[379207572,1755186646909,-775.91,0.00027397,2]
[379207573,1755186646920,-416.99,0.00027397,2]
[379207574,1755186646930,-1216.05,0.00027397,2]
[379207575,1755186646941,-827.2,0.00027397,2]
[379207576,1755186646951,-400.0,0.00027397,2]
[379207578,1755186646962,-780.81,0.00027397,2]
[379207579,1755186646972,-777.44,0.00027397,2]
[379207580,1755186646982,-571.16,0.00027397,2]
[379207581,1755186646993,-571.16,0.00027397,2]
[379207582,1755186647004,-571.16,0.00027397,2]
[379207583,1755186647014,-571.16,0.00027397,2]
[379207584,1755186647025,-571.16,0.00027397,2]
[379207585,1755186647040,-571.16,0.00027397,2]
[379207586,1755186647051,-571.16,0.00027397,2]
[379207587,1755186647062,-455.73,0.00027397,2]
[379207588,1755186647073,-571.16,0.00027397,2]
[379207589,1755186647083,-571.16,0.00027397,2]
[379207590,1755186647094,-571.16,0.00027397,2]
[379207591,1755186647104,-571.16,0.00027397,2]
[379207592,1755186647115,-571.16,0.00027397,2]
[379207593,1755186647125,-571.16,0.00027397,2]
[379207594,1755186647136,-571.16,0.00027397,2]
[379207595,1755186647146,-400.0,0.00027397,2]
[379207596,1755186647158,-624.42,0.00027397,2]
[379207597,1755186647168,-400.0,0.00027397,2]
[379207598,1755186647178,-400.0,0.00027397,2]
[379207599,1755186647189,-400.0,0.00027397,2]
[379207600,1755186647199,-955.53,0.00027397,2]
[379207601,1755186647209,-1029.5,0.00027397,2]
[379207602,1755186647219,-1593.9,0.00027397,2]
[379207603,1755186647230,-400.0,0.00027397,2]
[379207604,1755186647240,-400.0,0.00027397,2]
[379207605,1755186647251,-400.0,0.00027397,2]
[379207606,1755186647260,-1613.68,0.00027397,2]
[379207607,1755186647270,-1634.08,0.00027397,2]
[379207608,1755186647282,-400.0,0.00027397,2]
[379207609,1755186647292,-400.0,0.00027397,2]
[379207610,1755186647302,-404.22,0.00027397,2]
[379207611,1755186647312,-400.0,0.00027397,2]
[379207612,1755186647322,-339.47,0.00027397,2]
[379207613,1755186647332,-1395.52,0.00027397,2]
[379207614,1755186647342,-472.07,0.00027397,2]
[379207615,1755186647352,-775.59,0.00027397,2]
[379207616,1755186647365,-400.0,0.00027397,2]
[379207617,1755186647375,-504.2,0.00027397,2]
[379207618,1755186647386,-1399.53,0.00027397,2]
[379207619,1755186647396,-459.36,0.00027397,2]
[379207620,1755186647406,-3079.28,0.00027397,2]
[379207621,1755186647416,-813.87,0.00027397,2]
[379207622,1755186647426,-400.0,0.00027397,2]
[379207623,1755186647436,-639.53,0.00027397,2]
[379207624,1755186647446,-400.0,0.00027397,2]
[379207625,1755186647456,-1960.23,0.00027397,2]
[379207626,1755186647468,-793.84,0.00027397,2]
[379207627,1755186647478,-400.0,0.00027397,2]
[379207628,1755186647488,-400.0,0.00027397,2]
[379207629,1755186647498,-400.0,0.00027397,2]
[379207630,1755186647509,-400.0,0.00027397,2]
[379207631,1755186647520,-400.0,0.00027397,2]
[379207632,1755186647533,-400.0,0.00027397,2]
[379207633,1755186647546,-549.47,0.00027397,2]
[379207634,1755186647556,-618.96,0.00027397,2]
[379207635,1755186647567,-817.06,0.00027397,2]
[379207636,1755186647578,-400.0,0.00027397,2]
[379207637,1755186647588,-1400.23,0.00027397,2]
[379207638,1755186647599,-420.64,0.00027397,2]
[379207639,1755186647610,-400.0,0.00027397,2]
[379207640,1755186647621,-881.2,0.00027397,2]
[379207641,1755186647632,-400.0,0.00027397,2]
[379207642,1755186647643,-559.64,0.00027397,2]
[379207643,1755186647654,-400.0,0.00027397,2]
[379207644,1755186647664,-400.0,0.00027397,2]
[379207645,1755186647675,-623.78,0.00027397,2]
[379207646,1755186647687,-541.27106022,0.00027397,2]
[379207647,1755186647697,-2575.9,0.00027397,2]
[379207648,1755186647708,-407.28,0.00027397,2]
[379207649,1755186647718,-400.0,0.00027397,2]
[379207650,1755186647729,-879.03,0.00027397,2]
[379207651,1755186647739,-400.0,0.00027397,2]
[379207652,1755186647749,-1214.3,0.00027397,2]
[379207653,1755186647761,-1249.11,0.00027397,2]
[379207654,1755186647771,-400.0,0.00027397,2]
[379207655,1755186647786,-401.28460557,0.00027397,2]
[379207656,1755186647906,-400.0,0.00027397,2]
[379207657,1755186647916,-773.59,0.00027397,2]
[379207658,1755186647926,-400.0,0.00027397,2]
[379207659,1755186647936,-400.0,0.00027397,2]
[379207660,1755186647946,-500.29,0.00027397,2]
[379207661,1755186647955,-783.1,0.00027397,2]
[379207662,1755186647965,-2015.44,0.00027397,2]
[379207663,1755186647975,-967.1,0.00027397,2]
[379207664,1755186647985,-702.73,0.00027397,2]
[379207665,1755186647995,-400.0,0.00027397,2]
[379207666,1755186648004,-2051.95,0.00027397,2]
[379207667,1755186648014,-819.87,0.00027397,2]
[379207668,1755186648024,-620.71,0.00027397,2]
[379207669,1755186648037,-1501.71,0.00027397,2]
[379207670,1755186648047,-400.0,0.00027397,2]
[379207671,1755186648057,-400.0,0.00027397,2]
[379207672,1755186648067,-1212.32,0.00027397,2]
[379207673,1755186648078,-834.89,0.00027397,2]
[379207674,1755186648088,-1016.86,0.00027397,2]
[379207675,1755186648098,-2385.61,0.00027397,2]
[379207676,1755186648109,-400.0,0.00027397,2]
[379207677,1755186648119,-400.0,0.00027397,2]
[379207678,1755186648129,-674.79,0.00027397,2]
[379207679,1755186648139,-806.44,0.00027397,2]
[379207680,1755186648149,-400.0,0.00027397,2]
[379207681,1755186648160,-538.85,0.00027397,2]
[379207682,1755186648170,-400.0,0.00027397,2]
[379207683,1755186648180,-400.0,0.00027397,2]
[379207684,1755186648190,-400.0,0.00027397,2]
[379207685,1755186648201,-828.57,0.00027397,2]
[379207686,1755186648211,-400.0,0.00027397,2]
[379207687,1755186648221,-400.0,0.00027397,2]
[379207688,1755186648231,-1817.02,0.00027397,2]
[379207689,1755186648242,-400.0,0.00027397,2]
[379207690,1755186648252,-400.0,0.00027397,2]
[379207691,1755186648262,-400.0,0.00027397,2]
[379207692,1755186648271,-500.0,0.00027397,2]
[379207693,1755186648283,-669.0,0.00027397,2]
[379207694,1755186648293,-500.0,0.00027397,2]
[379207695,1755186648304,-400.0,0.00027397,2]
[379207696,1755186648315,-500.0,0.00027397,2]
[379207697,1755186648326,-500.0,0.00027397,2]
[379207698,1755186648336,-485.87,0.00027397,2]
[379207699,1755186648347,-1982.17,0.00027397,2]
[379207700,1755186648357,-820.13,0.00027397,2]
[379207701,1755186648367,-1579.15,0.00027397,2]
[379207702,1755186648378,-400.0,0.00027397,2]
[379207703,1755186648389,-400.0,0.00027397,2]
[379207704,1755186648399,-400.0,0.00027397,2]
[379207705,1755186648410,-817.47,0.00027397,2]
[379207706,1755186648419,-406.05694908,0.00027397,2]
[379207707,1755186648429,-400.0,0.00027397,2]
[379207708,1755186648440,-585.39,0.00027397,2]
[379207709,1755186648450,-1480.24,0.00027397,2]
[379207710,1755186648461,-585.39,0.00027397,2]
[379207711,1755186648473,-585.39,0.00027397,2]
[379207712,1755186648483,-585.39,0.00027397,2]
[379207713,1755186648492,-585.39,0.00027397,2]
[379207714,1755186648503,-585.39,0.00027397,2]
[379207715,1755186648514,-400.0,0.00027397,2]
[379207716,1755186648524,-585.39,0.00027397,2]
[379207717,1755186648538,-1755.97,0.00027397,2]
[379207718,1755186648550,-585.39,0.00027397,2]
[379207719,1755186648560,-400.0,0.00027397,2]
[379207720,1755186648570,-585.39,0.00027397,2]
[379207721,1755186648580,-585.39,0.00027397,2]
[379207722,1755186648591,-585.39,0.00027397,2]
[379207723,1755186648600,-585.39,0.00027397,2]
[379207724,1755186648610,-585.39,0.00027397,2]
[379207725,1755186648620,-585.39,0.00027397,2]
[379207726,1755186648630,-400.0,0.00027397,2]
[379207727,1755186648640,-550.13,0.00027397,2]
[379207728,1755186648650,-188.16334539,0.00027397,2]
[379207729,1755186648659,-3338.22,0.00027397,2]
[379207730,1755186648670,-560.95,0.00027397,2]
[379207731,1755186648680,-400.0,0.00027397,2]
[379207732,1755186648693,-400.0,0.00027397,2]
[379207733,1755186648703,-400.0,0.00027397,2]
[379207734,1755186648714,-406.46,0.00027397,2]
[379207735,1755186648724,-400.0,0.00027397,2]
[379207736,1755186648734,-400.0,0.00027397,2]
[379207737,1755186648745,-401.35,0.00027397,2]
[379207738,1755186648755,-400.0,0.00027397,2]
[379207739,1755186648765,-315.84063867,0.00027397,2]
[379207740,1755186648775,-400.0,0.00027397,2]
[379207741,1755186648788,-1978.77,0.00027397,2]
[379207742,1755186648799,-365.37349884,0.00027397,2]
[379207743,1755186648809,-400.0,0.00027397,2]
[379207744,1755186648819,-884.5,0.00027397,2]
[379207745,1755186648829,-1170.64,0.00027397,2]
[379207746,1755186648839,-1188.72,0.00027397,2]
[379207747,1755186648849,-400.0,0.00027397,2]
[379207748,1755186648859,-3078.32,0.00027397,2]
[379207749,1755186648869,-400.0,0.00027397,2]
[379207750,1755186648881,-1648.86,0.00027397,2]
[379207751,1755186648891,-404.69741801,0.00027397,2]
[379207752,1755186648901,-733.28,0.00027397,2]
[379207753,1755186648911,-400.0,0.00027397,2]
[379207754,1755186648921,-400.0,0.00027397,2]
[379207755,1755186648931,-400.0,0.00027397,2]
[379207756,1755186648941,-532.07,0.00027397,2]
[379207757,1755186648950,-457.74,0.00027397,2]
[379207758,1755186648960,-216.57704694,0.00027397,2]
[379207759,1755186648970,-503.78,0.00027397,2]
[379207760,1755186648980,-993.68,0.00027397,2]
[379207761,1755186648990,-400.0,0.00027397,2]
[379207762,1755186649000,-420.52,0.00027397,2]
[379207763,1755186649010,-400.0,0.00027397,2]
[379207764,1755186649019,-400.0,0.00027397,2]
[379207765,1755186649029,-437.03,0.00027397,2]
[379207766,1755186649042,-1226.53,0.00027397,2]
[379207767,1755186649052,-547.61,0.00027397,2]
[379207768,1755186649061,-946.75,0.00027397,2]
[379207769,1755186649072,-400.0,0.00027397,2]
[379207770,1755186649081,-400.0,0.00027397,2]
[379207771,1755186649091,-1235.71,0.00027397,2]
[379207772,1755186649101,-400.0,0.00027397,2]
[379207773,1755186649111,-880.89,0.00027397,2]
[379207774,1755186649121,-522.27,0.00027397,2]
[379207775,1755186649131,-727.38,0.00027397,2]
[379207776,1755186649142,-646.09,0.00027397,2]
[379207777,1755186649152,-400.0,0.00027397,2]
[379207778,1755186649162,-3917.76,0.00027397,2]
[379207779,1755186649172,-578.61,0.00027397,2]
[379207780,1755186649182,-400.0,0.00027397,2]
[379207781,1755186649192,-400.0,0.00027397,2]
[379207782,1755186649202,-2732.8,0.00027397,2]
[379207783,1755186649212,-790.42,0.00027397,2]
[379207784,1755186649222,-400.0,0.00027397,2]
[379207785,1755186649232,-400.0,0.00027397,2]
[379207786,1755186649242,-918.87,0.00027397,2]
[379207787,1755186649252,-3781.974069,0.00027397,2]
[379207788,1755186649261,-400.0,0.00027397,2]
[379207789,1755186649270,-556.38,0.00027397,2]
[379207790,1755186649283,-746.62,0.00027397,2]
[379207791,1755186649293,-2562.96,0.00027397,2]
[379207792,1755186649303,-396.1103147,0.00027397,2]
[379207793,1755186649313,-757.14,0.00027397,2]
[379207794,1755186649323,-2796.49,0.00027397,2]
[379207795,1755186649333,-564.36,0.00027397,2]
[379207796,1755186649344,-2587.83,0.00027397,2]
[379207797,1755186649353,-400.0,0.00027397,2]
[379207798,1755186649364,-400.0,0.00027397,2]
[379207799,1755186649374,-1013.12,0.00027397,2]
[379207800,1755186649384,-447.85,0.00027397,2]
[379207801,1755186649394,-1049.62,0.00027397,2]
[379207802,1755186649403,-400.0,0.00027397,2]
[379207803,1755186649413,-2437.01,0.00027397,2]
[379207804,1755186649423,-169.12713066,0.00027397,2]
[379207805,1755186649433,-481.78,0.00027397,2]
[379207806,1755186649443,-1029.67,0.00027397,2]
[379207807,1755186649453,-400.0,0.00027397,2]
[379207808,1755186649464,-400.0,0.00027397,2]
[379207809,1755186649480,-691.48,0.00027397,2]
[379207810,1755186649490,-197.60455942,0.00027397,2]
[379207811,1755186649500,-915.7,0.00027397,2]
[379207812,1755186649511,-150.66492,0.00027397,2]
[379207813,1755186649521,-400.0,0.00027397,2]
[379207814,1755186649532,-400.0,0.00027397,2]
[379207815,1755186649543,-1442.44,0.00027397,2]
[379207816,1755186649552,-400.0,0.00027397,2]
[379207817,1755186649562,-400.0,0.00027397,2]
[379207818,1755186649575,-963.18,0.00027397,2]
[379207819,1755186649585,-160.512608,0.00027397,2]
[379207820,1755186649595,-1060.35,0.00027397,2]
[379207821,1755186649604,-400.0,0.00027397,2]
[379207822,1755186649614,-400.0,0.00027397,2]
[379207823,1755186649623,-400.0,0.00027397,2]
[379207824,1755186649634,-974.35,0.00027397,2]
[379207825,1755186649644,-2699.4,0.00027397,2]
[379207826,1755186649654,-400.0,0.00027397,2]
[379207827,1755186649664,-2609.972267,0.00027397,2]
[379207828,1755186649675,-835.67,0.00027397,2]
[379207829,1755186649684,-400.0,0.00027397,2]
[379207830,1755186649695,-3893.049144,0.00027397,2]
[379207831,1755186649704,-537.78,0.00027397,2]
[379207832,1755186649714,-400.0,0.00027397,2]
[379207833,1755186649724,-978.84,0.00027397,2]
[379207834,1755186649734,-2758.39,0.00027397,2]
[379207835,1755186649744,-1791.93,0.00027397,2]
[379207836,1755186649755,-2892.35,0.00027397,2]
[379207837,1755186649764,-1119.16,0.00027397,2]
[379207838,1755186649776,-400.0,0.00027397,2]
[379207839,1755186649787,-4738.12,0.00027397,2]
[379207840,1755186649798,-223.304784,0.00027397,2]
[379207841,1755186649808,-5407.1,0.00027397,2]
[379207842,1755186649817,-801.21,0.00027397,2]
[379207843,1755186649827,-1191.01,0.00027397,2]
[379207844,1755186649836,-2295.44,0.00027397,2]
[379207845,1755186649844,-3037.28,0.00027397,2]
[379207846,1755186649853,-1037.09,0.00027397,2]
[379207847,1755186649862,-400.0,0.00027397,2]
[379207848,1755186649871,-400.0,0.00027397,2]
[379207849,1755186649879,-2398.14,0.00027397,2]
[379207850,1755186649888,-508.7,0.00027397,2]
[379207851,1755186649897,-3085.13,0.00027397,2]
[379207852,1755186649906,-400.0,0.00027397,2]
[379207853,1755186649915,-1019.21,0.00027397,2]
[379207854,1755186649923,-974.97,0.00027397,2]
[379207855,1755186649932,-2412.97,0.00027397,2]
[379207856,1755186649941,-450.89,0.00027397,2]
[379207857,1755186649950,-400.0,0.00027397,2]
[379207858,1755186649959,-400.0,0.00027397,2]
[379207859,1755186649968,-1279.09,0.00027397,2]
[379207860,1755186649977,-400.0,0.00027397,2]